[Event "2nd Summer Festival Belgrade GM 2019"]
[Site "Belgrade"]
[Date "2019.06.27"]
[Round "6.6"]
[White "Liu, Zhaoqi"]
[Black "Batsuren, Dambasuren"]
[Result "1/2-1/2"]
[ECO "A29"]
[WhiteElo "2386"]
[BlackElo "2439"]
[Annotator "NA"]
[PlyCount "89"]
[EventDate "2019.06.25"]
[EventType "tourn"]
[EventCountry "SRB"]
[SourceTitle "playchess.com"]
[Source "ChessBase"]
[SourceQuality "1"]
[TimeControl "5400+30"]

1. c4 {[%emt 0:00:00]} Nf6 {[%emt 0:00:00]} 2. Nc3 {[%emt 0:00:00]} e5 {[%emt 0:00:00]} 3. g3 {[%emt 0:00:00]} d5 {[%emt 0:00:00]} 4. cxd5 {[%emt 0:00:00]} Nxd5 {[%emt 0:00:00]} 5. Bg2 {[%emt 0:00:00]} Nb6 {[%emt 0:00:00]} 6. Nf3 {[%emt 0:00:00]} Nc6 {[%emt 0:00:03]} 7. O-O {[%emt 0:00:03]} Be7 {[%emt 0:00:06]} 8. d3 {[%emt 0:00:02]} O-O {[%emt 0:00:38]} 9. Be3 {[%emt 0:00:03]} Be6 {[%emt 0:00:28]} 10. Rc1 {[%emt 0:00:18]} f5 {[%emt 0:00:46]} 11. a3 {[%emt 0:02:38]} Kh8 {[%emt 0:01:00]} 12. b4 {[%emt 0:01:52]} a6 {[%emt 0:00:27]} 13. Nd2 {[%emt 0:05:44]} Nd5 {[%emt 0:05:10]} 14. Nxd5 {[%emt 0:05:27]} Bxd5 {[%emt 0:00:06]} 15. Bxd5 {[%emt 0:00:14]} Qxd5 {[%emt 0:00:06]} 16. Bc5 {[%emt 0:00:53]} Bxc5 {[%emt 0:02:55]} 17. Rxc5 {[%emt 0:00:44]} Qd7 {[%emt 0:00:12]} 18. Nf3 {[%emt 0:00:18]} Qe7 {[%emt 0:03:08]} 19. d4 {[%emt 0:28:08]} exd4 {[%emt 0:05:41]} 20. Nxd4 {[%emt 0:01:43]} Nxd4 {[%emt 0:03:24]} 21. Qxd4 {[%emt 0:00:03]} c6 {[%emt 0:02:32]} 22. Qe5 {[%emt 0:07:42]} Qd7 {[%emt 0:01:12]} 23. e3 {[%emt 0:00:20]} Rae8 {[%emt 0:02:17]} 24. Qc3 {[%emt 0:03:03]} Rf6 {[%emt 0:03:28]} 25. Qc2 {[%emt 0:07:33]} Rd8 {[%emt 0:01:06]} 26. Re5 {[%emt 0:00:32]} h6 {[%emt 0:02:22]} 27. Rc1 {[%emt 0:02:16]} Rf7 {[%emt 0:01:15]} 28. h4 {[%emt 0:03:22]} Re8 {[%emt 0:03:45]} 29. Rxe8+ {[%emt 0:04:33]} Qxe8 {[%emt 0:00:07]} 30. Qc5 {[%emt 0:00:58]} Qe6 {[%emt 0:00:49]} 31. Rc4 {[%emt 0:04:09]} Rd7 {[%emt 0:01:51]} 32. Rf4 {[%emt 0:00:08]} Rd5 {[%emt 0:00:09]} 33. Qf8+ {[%emt 0:00:05]} Kh7 {[%emt 0:00:04]} 34. h5 {[%emt 0:02:32]} a5 {[%emt 0:01:02]} 35. Kg2 {[%emt 0:01:26]} axb4 {[%emt 0:01:27]} 36. axb4 {[%emt 0:01:01]} b6 {[%emt 0:00:40]} 37. Qb8 {[%emt 0:04:43]} c5 {[%emt 0:05:15]} 38. bxc5 {[%emt 0:00:42]} Rxc5 {[%emt 0:01:30]} 39. Qb7 {[%emt 0:06:20]} Rd5 {[%emt 0:05:12]} 40. Rb4 {[%emt 0:02:12]} b5 {[%emt 0:00:30]} 41. Rxb5 {[%emt 0:00:54]} Qe4+ {[%emt 0:00:11]} 42. Kh2 {[%emt 0:00:15]} Rxb5 {[%emt 0:00:15]} 43. Qxb5 {[%emt 0:00:01]} Qf3 {[%emt 0:00:07]} 44. Kg1 {[%emt 0:00:28]} Qxh5 {[%emt 0:00:07]} 45. Kg2 {[%emt 0:00:23]} 1/2-1/2

[Event "2nd Summer Festival Belgrade GM 2019"]
[Site "Belgrade"]
[Date "2019.06.28"]
[Round "7.2"]
[White "Abramovic, Bosko"]
[Black "Liu, Zhaoqi"]
[Result "1-0"]
[ECO "A05"]
[WhiteElo "2353"]
[BlackElo "2386"]
[Annotator "NA"]
[PlyCount "101"]
[EventDate "2019.06.25"]
[EventType "tourn"]
[EventCountry "SRB"]
[SourceTitle "playchess.com"]
[Source "ChessBase"]
[SourceQuality "1"]
[TimeControl "5400+30"]

1. Nf3 {[%emt 0:05:50]} Nf6 {[%emt 0:00:00]} 2. g3 {[%emt 0:00:05]} c5 {[%emt 0:00:00]} 3. Bg2 {[%emt 0:00:07]} g6 {[%emt 0:00:00]} 4. O-O {[%emt 0:00:07]} Bg7 {[%emt 0:00:00]} 5. c3 {[%emt 0:00:12]} Qc7 {[%emt 0:03:08]} 6. d4 {[%emt 0:00:12]} d6 {[%emt 0:00:03]} 7. Re1 {[%emt 0:00:17]} Bf5 {[%emt 0:00:07]} 8. Nh4 {[%emt 0:03:27]} Be4 {[%emt 0:01:17]} 9. d5 {[%emt 0:01:44]} Bxg2 {[%emt 0:00:11]} 10. Nxg2 {[%emt 0:00:05]} O-O {[%emt 0:01:35]} 11. e4 {[%emt 0:00:22]} b5 {[%emt 0:03:41]} 12. a4 {[%emt 0:01:05]} bxa4 {[%emt 0:01:03]} 13. Nd2 {[%emt 0:00:22]} Nbd7 {[%emt 0:01:01]} 14. Rxa4 {[%emt 0:00:26]} Nb6 {[%emt 0:00:50]} 15. Ra2 {[%emt 0:00:26]} a5 {[%emt 0:02:51]} 16. Qe2 {[%emt 0:01:17]} Nfd7 {[%emt 0:02:07]} 17. Ne3 {[%emt 0:00:15]} a4 {[%emt 0:03:10]} 18. h4 {[%emt 0:00:49]} h5 {[%emt 0:02:30]} 19. Ndc4 {[%emt 0:01:30]} Nxc4 {[%emt 0:01:20]} 20. Nxc4 {[%emt 0:01:22]} Nb6 {[%emt 0:03:36]} 21. Bg5 {[%emt 0:03:16]} Rfe8 {[%emt 0:06:46]} 22. Rea1 {[%emt 0:00:16]} Rab8 {[%emt 0:00:56]} 23. Nxb6 {[%emt 0:01:42]} Qxb6 {[%emt 0:00:02]} 24. Bc1 {[%emt 0:00:12]} e6 {[%emt 0:01:49]} 25. dxe6 {[%emt 0:01:56]} Rxe6 {[%emt 0:00:01]} 26. Rxa4 {[%emt 0:00:17]} Rbe8 {[%emt 0:00:58]} 27. Bf4 {[%emt 0:09:46]} Qb7 {[%emt 0:02:11]} 28. Ra7 {[%emt 0:01:09]} Qb3 {[%emt 0:06:28]} 29. R1a3 {[%emt 1:05:56]} Qb6 {[%emt 0:00:22]} 30. R3a6 {[%emt 0:00:00]} Qb3 {[%emt 0:02:39]} 31. Rxd6 {[%emt 0:00:00]} Rxe4 {[%emt 0:00:29]} 32. Qf3 {[%emt 0:00:00]} Re1+ {[%emt 0:25:17]} 33. Kg2 {[%emt 0:00:00]} Bd4 {[%emt 0:11:33]} 34. Ra8 {[%emt 0:00:00]} Bg7 {[%emt 0:02:04]} 35. Rxe8+ {[%emt 0:00:00]} Rxe8 {[%emt 0:00:03]} 36. Qd5 {[%emt 0:00:00]} Qxb2 {[%emt 0:05:30]} 37. Rd7 {[%emt 0:00:00]} Re6 {[%emt 0:00:46]} 38. Rc7 {[%emt 0:00:00]} Qxc3 {[%emt 0:01:31]} 39. Rc8+ {[%emt 0:00:00]} Kh7 {[%emt 0:00:11]} 40. Qd8 {[%emt 0:00:00]} g5 {[%emt 0:00:24]} 41. Qxg5 {[%emt 0:00:00]} Qc4 {[%emt 0:10:42]} 42. Qxh5+ {[%emt 0:00:00]} Rh6 {[%emt 0:00:50]} 43. Bxh6 {[%emt 0:00:00]} Bxh6 {[%emt 0:00:06]} 44. Qf5+ {[%emt 0:00:00]} Kg7 {[%emt 0:00:03]} 45. Rxc5 {[%emt 0:00:00]} Qa6 {[%emt 0:00:17]} 46. Rc7 {[%emt 0:00:00]} Qa2 {[%emt 0:00:12]} 47. Rc6 {[%emt 0:00:00]} Qb2 {[%emt 0:02:09]} 48. h5 {[%emt 0:00:00]} Be3 {[%emt 0:00:03]} 49. Rc7 {[%emt 0:00:00]} Qa2 {[%emt 0:01:07]} 50. Qxf7+ {[%emt 0:00:00]} Qxf7 {[%emt 0:00:29]} 51. Rxf7+ {[%emt 0:00:00]} 1-0

[Event "2nd Summer Festival Belgrade GM 2019"]
[Site "Belgrade"]
[Date "2019.06.28"]
[Round "7.3"]
[White "Lee, Jun Hyeok"]
[Black "Ernst, Sipke"]
[Result "1/2-1/2"]
[ECO "D43"]
[WhiteElo "2386"]
[BlackElo "2541"]
[Annotator "ChessBase"]
[PlyCount "48"]
[EventDate "2019.06.25"]
[EventType "tourn"]
[EventCountry "SRB"]
[SourceTitle "playchess.com"]
[Source "ChessBase"]
[SourceQuality "1"]
[TimeControl "5400+30"]

1. d4 {[%emt 0:00:00]} Nf6 {[%emt 0:04:15]} 2. Nf3 {[%emt 0:00:00]} e6 {[%emt 0:00:28]} 3. c4 {[%emt 0:00:00]} d5 {[%emt 0:00:07]} 4. Nc3 {[%emt 0:00:07]} dxc4 {[%emt 0:00:03]} 5. Qa4+ {[%emt 0:00:09]} c6 {[%emt 0:00:33]} 6. Qxc4 {[%emt 0:00:05]} b5 {[%emt 0:00:04]} 7. Qd3 {[%emt 0:00:05]} Nbd7 {[%emt 0:01:40]} 8. a3 {[%emt 0:00:15]} a5 {[%emt 0:01:57]} 9. e4 {[%emt 0:01:59]} b4 {[%emt 0:02:53]} 10. axb4 {[%emt 0:00:05]} Bxb4 {[%emt 0:00:08]} 11. e5 {[%emt 0:00:46]} Nd5 {[%emt 0:02:10]} 12. Qc2 {[%emt 0:07:04]} c5 {[%emt 0:06:34]} 13. Bd2 {[%emt 0:02:57]} Bb7 {[%emt 0:02:28]} 14. Bd3 {[%emt 0:13:23]} Bxc3 {[%emt 0:12:47]} 15. bxc3 {[%emt 0:00:56]} cxd4 {[%emt 0:00:27]} 16. cxd4 {[%emt 0:00:39]} Nb4 {[%emt 0:01:25]} 17. Bxb4 {[%emt 0:01:07]} axb4 {[%emt 0:00:05]} 18. O-O {[%emt 0:03:11]} h6 {[%emt 0:14:48]} 19. Rxa8 {[%emt 0:13:12]} Bxa8 {[%emt 0:00:10]} 20. Rb1 {[%emt 0:00:28]} Bxf3 {[%emt 0:02:04]} 21. gxf3 {[%emt 0:00:05]} O-O {[%emt 0:05:16]} 22. Rxb4 {[%emt 0:00:40]} Nb6 {[%emt 0:04:01]} 23. Bh7+ {[%emt 0:01:26]} Kh8 {[%emt 0:00:05]} 24. Be4 {[%emt 0:00:03]} Nd5 {[%emt 0:03:45]} 1/2-1/2

[Event "2nd Summer Festival Belgrade GM 2019"]
[Site "Belgrade"]
[Date "2019.06.28"]
[Round "7.5"]
[White "Damjanovic, Vuk"]
[Black "Nandhidhaa, P V"]
[Result "1/2-1/2"]
[ECO "B47"]
[WhiteElo "2283"]
[BlackElo "2259"]
[Annotator "NA"]
[PlyCount "43"]
[EventDate "2019.06.25"]
[EventType "tourn"]
[EventCountry "SRB"]
[SourceTitle "playchess.com"]
[Source "ChessBase"]
[SourceQuality "1"]
[TimeControl "5400+30"]

1. e4 {[%emt 0:05:56]} c5 {[%emt 0:00:00]} 2. Nf3 {[%emt 1:25:04]} e6 3. d4 {[%emt 0:00:00]} cxd4 {[%emt 0:00:00]} 4. Nxd4 {[%emt 0:00:00]} Nc6 {[%emt 0:00:00]} 5. Nc3 {[%emt 0:00:00]} Qc7 {[%emt 0:00:00]} 6. g3 {[%emt 0:00:00]} a6 {[%emt 0:00:04]} 7. Bg2 {[%emt 0:00:00]} d6 {[%emt 0:00:06]} 8. O-O {[%emt 0:00:00]} Bd7 {[%emt 0:00:04]} 9. Nxc6 {[%emt 0:00:00]} Bxc6 {[%emt 0:00:07]} 10. Re1 {[%emt 0:00:00]} Nf6 {[%emt 0:00:50]} 11. Nd5 {[%emt 0:00:00]} Bxd5 {[%emt 0:05:44]} 12. exd5 {[%emt 0:00:00]} e5 {[%emt 0:00:03]} 13. Be3 {[%emt 0:00:00]} Be7 {[%emt 0:00:11]} 14. a4 {[%emt 0:00:00]} a5 {[%emt 0:04:39]} 15. c3 {[%emt 0:00:00]} O-O {[%emt 0:00:25]} 16. Qb3 {[%emt 0:00:00]} Nd7 {[%emt 0:01:24]} 17. f3 {[%emt 0:00:00]} f5 {[%emt 0:09:46]} 18. Bf2 {[%emt 0:00:00]} Bf6 {[%emt 0:07:22]} 19. Qb5 {[%emt 0:00:00]} Rfc8 {[%emt 0:04:08]} 20. Rab1 {[%emt 0:00:00]} Nc5 {[%emt 0:01:55]} 21. Bf1 {[%emt 0:00:00]} Qf7 {[%emt 0:05:11]} 22. Red1 {[%emt 0:00:00]} 1/2-1/2

[Event "2nd Summer Festival Belgrade GM 2019"]
[Site "Belgrade"]
[Date "2019.06.28"]
[Round "7.6"]
[White "Damljanovic, Branko"]
[Black "Strikovic, Aleksa"]
[Result "1/2-1/2"]
[ECO "C96"]
[WhiteElo "2468"]
[BlackElo "2503"]
[Annotator "ChessBase"]
[PlyCount "21"]
[EventDate "2019.06.25"]
[EventType "tourn"]
[EventCountry "SRB"]
[SourceTitle "playchess.com"]
[Source "ChessBase"]
[SourceQuality "1"]
[TimeControl "5400+30"]

1. e4 {[%emt 0:03:57]} e5 {[%emt 0:00:00]} 2. Nf3 {[%emt 0:00:06]} Nc6 {[%emt 0:00:00]} 3. Bb5 {[%emt 0:00:05]} a6 {[%emt 0:00:00]} 4. Ba4 {[%emt 0:00:02]} Nf6 {[%emt 0:00:00]} 5. O-O {[%emt 0:00:04]} Be7 {[%emt 0:00:00]} 6. Re1 {[%emt 0:00:04]} b5 {[%emt 0:00:00]} 7. Bb3 {[%emt 0:00:03]} O-O {[%emt 0:00:02]} 8. h3 {[%emt 0:00:04]} d6 {[%emt 0:00:06]} 9. c3 {[%emt 0:00:03]} Na5 {[%emt 0:00:04]} 10. Bc2 {[%emt 0:00:04]} c5 {[%emt 0:00:02]} 11. d4 {[%emt 0:00:04]} 1/2-1/2

[Event "2nd Summer Festival Belgrade GM 2019"]
[Site "Belgrade"]
[Date "2019.06.29"]
[Round "8.1"]
[White "Yu, Jennifer"]
[Black "Strikovic, Aleksa"]
[Result "0-1"]
[ECO "E62"]
[WhiteElo "2369"]
[BlackElo "2503"]
[Annotator "ChessBase"]
[PlyCount "72"]
[EventDate "2019.06.25"]
[EventType "tourn"]
[EventCountry "SRB"]
[SourceTitle "playchess.com"]
[Source "ChessBase"]
[SourceQuality "1"]
[TimeControl "5400+30"]

1. d4 {[%emt 0:00:00]} Nf6 {[%emt 0:08:28]} 2. c4 {[%emt 0:00:00]} g6 {[%emt 0:00:32]} 3. Nc3 {[%emt 0:00:00]} Bg7 {[%emt 0:00:09]} 4. g3 {[%emt 0:00:00]} O-O {[%emt 0:00:24]} 5. Bg2 {[%emt 0:00:07]} d6 {[%emt 0:00:05]} 6. Nf3 {[%emt 0:00:09]} Nc6 {[%emt 0:00:08]} 7. O-O {[%emt 0:00:09]} Bf5 {[%emt 0:00:10]} 8. d5 {[%emt 0:00:58]} Na5 {[%emt 0:00:30]} 9. Nd2 {[%emt 0:00:09]} Ne8 {[%emt 0:02:36]} 10. e4 {[%emt 0:00:36]} Bd7 {[%emt 0:00:05]} 11. Qc2 {[%emt 0:00:56]} c6 {[%emt 0:02:30]} 12. Rb1 {[%emt 0:00:18]} cxd5 {[%emt 0:00:58]} 13. Nxd5 {[%emt 0:01:58]} Rc8 {[%emt 0:02:41]} 14. Qd3 {[%emt 0:00:36]} e6 {[%emt 0:00:33]} 15. Ne3 {[%emt 0:00:17]} Nc6 {[%emt 0:00:47]} 16. a3 {[%emt 0:01:20]} a6 {[%emt 0:01:58]} 17. f4 {[%emt 0:02:46]} b5 {[%emt 0:11:32]} 18. b4 {[%emt 0:07:22]} Ne7 {[%emt 0:12:48]} 19. Bb2 {[%emt 0:19:56]} bxc4 {[%emt 0:04:43]} 20. Ndxc4 {[%emt 0:01:25]} Bxb2 {[%emt 0:03:35]} 21. Rxb2 {[%emt 0:00:40]} d5 {[%emt 0:00:05]} 22. exd5 {[%emt 0:05:23]} exd5 {[%emt 0:00:11]} 23. Nxd5 {[%emt 0:11:07]} Nxd5 {[%emt 0:00:28]} 24. Bxd5 {[%emt 0:05:33]} Nf6 {[%emt 0:07:24]} 25. Ne5 {[%emt 0:15:55]} Nxd5 {[%emt 0:11:35]} 26. Qxd5 {[%emt 0:00:44]} Qb6+ {[%emt 0:00:03]} 27. Rbf2 {[%emt 0:04:30]} Be6 {[%emt 0:00:42]} 28. Qf3 {[%emt 0:03:51]} Rfd8 {[%emt 0:01:10]} 29. Re1 {[%emt 0:03:38]} Bh3 {[%emt 0:05:48]} 30. g4 {[%emt 0:07:41]} Rd2 {[%emt 0:02:41]} 31. f5 {[%emt 0:03:33]} g5 {[%emt 0:05:32]} 32. Nd3 {[%emt 0:01:01]} Qd4 {[%emt 0:01:41]} 33. Qxh3 {[%emt 0:02:38]} Rxd3 {[%emt 0:00:10]} 34. Qh5 {[%emt 0:00:36]} Qf6 {[%emt 0:01:23]} 35. Rfe2 {[%emt 0:00:30]} h6 {[%emt 0:03:52]} 36. Re7 {[%emt 0:01:05]} Rc2 {[%emt 0:10:03]} 0-1

[Event "2nd Summer Festival Belgrade GM 2019"]
[Site "Belgrade"]
[Date "2019.06.29"]
[Round "8.3"]
[White "Chen, Peng"]
[Black "Damjanovic, Vuk"]
[Result "1-0"]
[ECO "B10"]
[WhiteElo "2328"]
[BlackElo "2283"]
[Annotator "NA"]
[PlyCount "87"]
[EventDate "2019.06.25"]
[EventType "tourn"]
[EventCountry "SRB"]
[SourceTitle "playchess.com"]
[Source "ChessBase"]
[SourceQuality "1"]
[TimeControl "5400+30"]

1. e4 {[%emt 0:00:00]} c6 {[%emt 0:06:30]} 2. Nf3 {[%emt 0:00:04]} d5 {[%emt 0:00:13]} 3. exd5 {[%emt 0:00:05]} cxd5 {[%emt 0:00:09]} 4. Ne5 {[%emt 0:00:01]} Nc6 {[%emt 0:01:30]} 5. d4 {[%emt 0:00:09]} Nf6 {[%emt 0:06:10]} 6. Bb5 {[%emt 0:01:29]} Bd7 {[%emt 0:00:36]} 7. Nxd7 {[%emt 0:00:00]} Qxd7 {[%emt 0:00:00]} 8. c3 {[%emt 0:00:13]} e6 {[%emt 0:04:57]} 9. O-O {[%emt 0:00:14]} Bd6 {[%emt 0:01:05]} 10. Nd2 {[%emt 0:00:16]} O-O {[%emt 0:05:09]} 11. Qe2 {[%emt 0:02:10]} Qc7 {[%emt 0:03:19]} 12. Nf3 $11 {[%emt 0:00:18]} a6 {[%emt 0:14:18]} 13. Bd3 {[%emt 0:00:06]} Bf4 {[%emt 0:00:07]} 14. Bxf4 {[%emt 0:02:03]} Qxf4 {[%emt 0:00:11]} 15. g3 {[%emt 0:00:12]} Qc7 {[%emt 0:06:50]} 16. Kg2 {[%emt 0:00:27]} Rfe8 {[%emt 0:06:19]} 17. Rfe1 {[%emt 0:03:00]} Rab8 {[%emt 0:01:24]} 18. h4 {[%emt 0:00:48]} b5 {[%emt 0:02:26]} 19. a4 {[%emt 0:03:40]} Qb6 {[%emt 0:01:08]} 20. b4 {[%emt 0:03:13]} Rec8 {[%emt 0:16:04]} 21. Ra3 {[%emt 0:01:09]} h6 {[%emt 0:02:28]} 22. Rea1 {[%emt 0:03:51]} Nd7 {[%emt 0:01:12]} 23. axb5 {[%emt 0:10:30]} axb5 {[%emt 0:00:02]} 24. Kg1 {[%emt 0:03:15]} Qb7 {[%emt 0:04:39]} 25. Ra6 {[%emt 0:03:31]} Rc7 {[%emt 0:02:52]} 26. R6a3 {[%emt 0:02:11]} Rcc8 {[%emt 0:01:08]} 27. Re1 {[%emt 0:03:23]} Re8 {[%emt 0:00:41]} 28. Qa2 {[%emt 0:10:49]} Qc7 {[%emt 0:03:15]} 29. Ra6 {[%emt 0:01:38]} Qb7 {[%emt 0:00:51]} 30. Ra1 {[%emt 0:00:14]} Rbd8 {[%emt 0:00:50]} 31. Bf1 {[%emt 0:01:41]} Rb8 {[%emt 0:03:30]} 32. Ne1 {[%emt 0:02:04]} Qc7 {[%emt 0:03:54]} 33. Nd3 {[%emt 0:00:57]} Rec8 {[%emt 0:01:28]} 34. Bh3 {[%emt 0:02:34]} Re8 {[%emt 0:01:11]} 35. Re1 {[%emt 0:01:29]} Nb6 {[%emt 0:00:32]} 36. Nc5 {[%emt 0:01:32]} Nc4 {[%emt 0:00:16]} 37. Qa1 {[%emt 0:01:43]} e5 {[%emt 0:00:31]} 38. Bd7 {[%emt 0:00:18]} Ne7 {[%emt 0:00:43]} 39. Bxe8 {[%emt 0:03:17]} Rxe8 {[%emt 0:00:02]} 40. dxe5 {[%emt 0:00:22]} Nxe5 {[%emt 0:00:06]} 41. Kg2 {[%emt 0:00:24]} Qb8 {[%emt 0:00:59]} 42. c4 {[%emt 0:01:55]} Nxc4 {[%emt 0:00:04]} 43. Rxe7 {[%emt 0:00:11]} Rxe7 {[%emt 0:00:02]} 44. Ra8 {[%emt 0:00:01]} 1-0

[Event "2nd Summer Festival Belgrade GM 2019"]
[Site "Belgrade"]
[Date "2019.06.29"]
[Round "9.1"]
[White "Abramovic, Bosko"]
[Black "Yu, Jennifer"]
[Result "0-1"]
[ECO "A39"]
[WhiteElo "2353"]
[BlackElo "2369"]
[Annotator "ChessBase"]
[PlyCount "98"]
[EventDate "2019.06.25"]
[EventType "tourn"]
[EventCountry "SRB"]
[SourceTitle "playchess.com"]
[Source "ChessBase"]
[SourceQuality "1"]
[TimeControl "5400+30"]

1. Nf3 {[%emt 0:00:31]} Nf6 {[%emt 0:00:36]} 2. g3 {[%emt 0:00:42]} g6 {[%emt 0:00:36]} 3. Bg2 {[%emt 0:00:13]} Bg7 {[%emt 0:00:07]} 4. O-O {[%emt 0:00:23]} c5 {[%emt 0:01:32]} 5. c4 {[%emt 0:01:15]} O-O {[%emt 0:01:52]} 6. d4 {[%emt 0:00:19]} cxd4 {[%emt 0:00:58]} 7. Nxd4 {[%emt 0:00:08]} Nc6 {[%emt 0:00:16]} 8. Nc3 {[%emt 0:00:24]} Nxd4 {[%emt 0:01:57]} 9. Qxd4 {[%emt 0:00:07]} d6 {[%emt 0:00:04]} 10. Qd3 {[%emt 0:02:35]} Nd7 {[%emt 0:02:10]} 11. b3 {[%emt 0:00:43]} Nc5 {[%emt 0:04:32]} 12. Qd2 {[%emt 0:00:23]} a5 {[%emt 0:08:42]} 13. Bb2 {[%emt 0:01:41]} a4 {[%emt 0:04:24]} 14. Nd5 {[%emt 0:05:22]} e6 {[%emt 0:05:27]} 15. Bxg7 {[%emt 0:06:08]} Kxg7 {[%emt 0:00:14]} 16. Qc3+ {[%emt 0:08:23]} f6 {[%emt 0:00:15]} 17. b4 {[%emt 0:03:27]} exd5 {[%emt 0:09:22]} 18. bxc5 {[%emt 0:00:07]} dxc5 {[%emt 0:00:10]} 19. Bxd5 {[%emt 0:00:37]} Qe7 {[%emt 0:04:47]} 20. e4 {[%emt 0:03:54]} h5 {[%emt 0:05:47]} 21. h4 {[%emt 0:01:33]} Rb8 {[%emt 0:09:30]} 22. Rab1 {[%emt 0:01:15]} b6 {[%emt 0:00:24]} 23. f4 {[%emt 0:00:34]} Be6 {[%emt 0:06:24]} 24. Rfe1 {[%emt 0:00:52]} Rfd8 {[%emt 0:07:58]} 25. f5 {[%emt 0:03:13]} Bf7 {[%emt 0:03:17]} 26. fxg6 {[%emt 0:07:20]} Bxg6 {[%emt 0:01:40]} 27. Rb2 {[%emt 0:03:09]} Qe5 {[%emt 0:02:34]} 28. Qxe5 {[%emt 0:01:00]} fxe5 {[%emt 0:00:11]} 29. Kf2 {[%emt 0:09:40]} Rd6 {[%emt 0:00:25]} 30. Ke3 {[%emt 0:00:06]} Rf8 {[%emt 0:01:37]} 31. Rf2 {[%emt 0:00:07]} Rxf2 {[%emt 0:01:36]} 32. Kxf2 {[%emt 0:00:05]} Be8 {[%emt 0:00:02]} 33. Re3 {[%emt 0:04:05]} Rf6+ {[%emt 0:03:39]} 34. Rf3 {[%emt 0:00:12]} a3 {[%emt 0:01:18]} 35. Rxf6 {[%emt 0:16:38]} Kxf6 {[%emt 0:00:07]} 36. Ke3 {[%emt 0:00:22]} Ba4 {[%emt 0:00:05]} 37. Bb7 {[%emt 0:00:19]} Bb3 {[%emt 0:01:53]} 38. Ba6 {[%emt 0:00:07]} Bxa2 {[%emt 0:00:07]} 39. Kd2 {[%emt 0:00:18]} Bb1 {[%emt 0:00:03]} 40. Kc3 {[%emt 0:00:16]} Bxe4 {[%emt 0:07:01]} 41. Kb3 {[%emt 0:00:19]} Bd3 {[%emt 0:02:55]} 42. Kxa3 {[%emt 0:06:28]} Kf5 {[%emt 0:00:03]} 43. Bc8+ {[%emt 0:05:00]} Ke4 {[%emt 0:00:02]} 44. g4 {[%emt 0:00:32]} hxg4 {[%emt 0:00:03]} 45. Bxg4 {[%emt 0:00:06]} Kf4 {[%emt 0:00:18]} 46. Be6 {[%emt 0:00:55]} e4 {[%emt 0:00:29]} 47. Kb3 {[%emt 0:00:04]} e3 {[%emt 0:00:02]} 48. Kc3 {[%emt 0:00:07]} e2 {[%emt 0:00:01]} 49. Kd2 {[%emt 0:00:27]} Kg3 {[%emt 0:00:03]} 0-1

[Event "2nd Summer Festival Belgrade GM 2019"]
[Site "Belgrade"]
[Date "2019.06.29"]
[Round "9.3"]
[White "Salimova, Nurgyul"]
[Black "Liu, Zhaoqi"]
[Result "0-1"]
[ECO "C18"]
[WhiteElo "2416"]
[BlackElo "2386"]
[Annotator "RC"]
[PlyCount "102"]
[EventDate "2019.06.25"]
[EventType "tourn"]
[EventCountry "SRB"]
[SourceTitle "playchess.com"]
[Source "ChessBase"]
[SourceQuality "1"]
[TimeControl "5400+30"]

1. e4 {[%emt 0:00:00]} e6 {[%emt 0:00:00]} 2. d4 {[%emt 0:00:00]} d5 {[%emt 0:00:00]} 3. Nc3 {[%emt 0:00:00]} Bb4 {[%emt 0:00:00]} 4. e5 {[%emt 0:00:00]} c5 {[%emt 0:00:00]} 5. a3 {[%emt 0:00:04]} Ba5 {[%emt 0:00:00]} 6. b4 {[%emt 0:00:21]} cxd4 {[%emt 0:00:05]} 7. Nb5 {[%emt 0:00:27]} Bc7 {[%emt 0:00:05]} 8. f4 {[%emt 0:00:27]} Bd7 {[%emt 0:00:09]} 9. Nf3 {[%emt 0:02:36]} Bxb5 {[%emt 0:00:50]} 10. Bxb5+ {[%emt 0:00:07]} Nc6 {[%emt 0:00:03]} 11. O-O {[%emt 0:01:37]} Nge7 {[%emt 0:00:39]} 12. Bd3 {[%emt 0:05:27]} a6 {[%emt 0:00:43]} 13. Qe2 {[%emt 0:14:09]} Bb6 {[%emt 0:00:37]} 14. g4 {[%emt 0:06:47]} h5 {[%emt 0:03:04]} 15. h3 {[%emt 0:01:24]} hxg4 {[%emt 0:00:37]} 16. hxg4 {[%emt 0:00:09]} Kd7 {[%emt 0:31:56]} 17. f5 {[%emt 0:08:23]} Qg8 {[%emt 0:07:39]} 18. Kg2 {[%emt 0:20:52]} f6 {[%emt 0:18:00]} 19. Bf4 {[%emt 0:05:42]} exf5 {[%emt 0:00:44]} 20. gxf5 {[%emt 0:04:43]} Re8 {[%emt 0:02:05]} 21. e6+ {[%emt 0:01:55]} Kc8 {[%emt 0:00:06]} 22. b5 {[%emt 0:05:27]} axb5 {[%emt 0:01:01]} 23. Rab1 {[%emt 0:02:26]} g6 {[%emt 0:03:13]} 24. Rxb5 {[%emt 0:04:28]} gxf5+ {[%emt 0:00:07]} 25. Kf2 {[%emt 0:00:33]} Ng6 {[%emt 0:12:56]} 26. Qd2 {[%emt 0:02:27]} Nxf4 {[%emt 0:01:03]} 27. Qxf4 {[%emt 0:00:12]} Bc7 {[%emt 0:01:53]} 28. Qxf5 {[%emt 0:00:29]} Bg3+ {[%emt 0:11:22]} 29. Ke2 {[%emt 0:01:13]} Qxe6+ {[%emt 0:00:47]} 30. Qxe6+ {[%emt 0:00:32]} Rxe6+ {[%emt 0:00:01]} 31. Kd1 {[%emt 0:00:22]} Rd6 {[%emt 0:01:52]} 32. Bf5+ {[%emt 0:01:52]} Kc7 {[%emt 0:00:32]} 33. Rg1 {[%emt 0:00:44]} Rg8 {[%emt 0:00:08]} 34. Rh1 {[%emt 0:00:21]} Rg7 {[%emt 0:00:48]} 35. Rh8 {[%emt 0:00:28]} b6 {[%emt 0:00:18]} 36. a4 {[%emt 0:01:20]} Be5 {[%emt 0:00:46]} 37. Ne1 {[%emt 0:06:07]} Ne7 {[%emt 0:00:33]} 38. Bh3 {[%emt 0:00:26]} f5 {[%emt 0:00:31]} 39. Re8 {[%emt 0:01:13]} Kd7 {[%emt 0:00:34]} 40. Ra8 {[%emt 0:00:20]} Rg3 {[%emt 0:01:10]} 41. Nd3 {[%emt 0:00:40]} Ke6 {[%emt 0:02:18]} 42. Bf1 {[%emt 0:02:06]} f4 {[%emt 0:00:23]} 43. Rf8 {[%emt 0:01:02]} Ng6 {[%emt 0:00:37]} 44. Re8+ {[%emt 0:00:57]} Kf5 {[%emt 0:00:08]} 45. a5 {[%emt 0:00:44]} bxa5 {[%emt 0:00:04]} 46. Rb7 {[%emt 0:00:03]} Bf6 {[%emt 0:00:51]} 47. Nf2 {[%emt 0:00:35]} f3 {[%emt 0:00:30]} 48. Bd3+ {[%emt 0:00:41]} Kf4 {[%emt 0:00:36]} 49. Rg8 {[%emt 0:00:55]} Ne5 {[%emt 0:00:20]} 50. Rf8 {[%emt 0:00:31]} Ke3 {[%emt 0:00:39]} 51. Ke1 {[%emt 0:00:21]} Nxd3+ {[%emt 0:00:24]} 0-1